bitfinex/quotes_SOLUSD_20241111
["timestamp","ask_amount","ask_price","bid_price","bid_amount"]
[1731283957269,4.7728,209.52,209.46,23.78900617]
[1731283957471,23.78900617,209.57,209.5,23.78900617]
[1731283957675,23.78900617,209.6,209.43,43.976884]
[1731283957981,0.2,209.69,209.51,23.776884]
[1731283957982,6.1955,209.69,209.51,23.776884]
[1731283958574,4.7687,209.7,209.53,23.876884]
[1731283958992,23.78900617,209.67,209.6,23.78900617]
[1731283959490,23.78900617,209.64,209.57,23.78900617]
[1731283959875,23.78900617,209.65,209.57,23.78900617]
[1731283960197,23.78900617,209.65,209.58,23.78900617]
[1731283960494,23.78900617,209.66,209.58,23.78900617]
[1731283960885,23.78900617,209.65,209.58,23.78900617]
[1731283961084,23.78900617,209.63,209.56,23.78900617]
[1731283961289,23.78900617,209.63,209.5,16.2791]
[1731283961471,4.7709,209.6,209.53,23.78900617]
[1731283961675,23.78900617,209.63,209.56,23.78900617]
[1731283962976,4.7705,209.62,209.56,23.78900617]
[1731283963176,23.78900617,209.61,209.54,23.78900617]
[1731283963372,23.78900617,209.58,209.5,40.06810617]
[1731283963791,11.4141,209.62,209.5,40.06810617]
[1731283963792,23.78900617,209.59,209.52,23.78900617]
[1731283963995,23.3404,209.62,209.51,23.78900617]
[1731283963996,23.78900617,209.58,209.51,23.78900617]
[1731283964300,23.78900617,209.58,209.5,23.78900617]
[1731283965001,4.7716,209.57,209.5,23.78900617]
[1731283965783,4.7716,209.57,209.51,23.78900617]
[1731283966300,18.5699,209.62,209.55,23.78900617]
[1731283966301,4.7707,209.61,209.55,23.78900617]
[1731283966677,28.55970617,209.61,209.54,23.78900617]
[1731283967595,4.7707,209.61,209.55,23.78900617]
[1731283967781,4.7707,209.61,209.51,4.7729]
[1731283967782,23.78900617,209.6,209.53,23.78900617]
[1731283968200,23.78900617,209.57,209.5,23.78900617]
[1731283968405,23.78900617,209.56,209.49,23.78900617]
[1731283969195,23.78900617,209.6,209.53,23.78900617]
[1731283969377,35.71590617,209.61,209.54,23.78900617]
[1731283969584,23.78900617,209.62,209.54,23.78900617]
[1731283969783,23.78900617,209.61,209.54,23.78900617]
[1731283970005,23.78900617,209.6,209.53,23.78900617]
[1731283970299,23.78900617,209.6,209.52,23.78900617]
[1731283970702,4.7712,209.59,209.52,23.78900617]
[1731283971208,28.56020617,209.59,209.52,23.78900617]
[1731283971884,23.78900617,209.58,209.5,23.78900617]
[1731283972292,23.78900617,209.57,209.5,23.78900617]
[1731283972693,4.7719,209.56,209.49,23.78900617]
[1731283973587,28.56090617,209.56,209.49,23.78900617]
[1731283973983,4.7719,209.56,209.49,23.78900617]
[1731283974609,23.78900617,209.58,209.5,23.78900617]
[1731283974786,23.78900617,209.57,209.5,23.78900617]
[1731283975288,23.78900617,209.61,209.54,23.78900617]
[1731283975496,28.55950617,209.62,209.55,23.78900617]
[1731283975891,4.7705,209.62,209.56,23.78900617]
[1731283976281,23.78900617,209.6,209.53,23.78900617]
[1731283976489,23.78900617,209.58,209.51,23.78900617]
[1731283976687,23.78900617,209.55,209.48,23.78900617]
[1731283976891,4.7707,209.61,209.46,23.78900617]
[1731283976892,23.78900617,209.53,209.46,23.78900617]
[1731283977208,23.776884,209.6,209.45,15.8428]
[1731283977407,23.78900617,209.52,209.45,23.78900617]
[1731283977790,23.78900617,209.52,209.44,23.78900617]
[1731283978110,6.5243,209.55,209.43,11.937]
[1731283978111,23.78900617,209.5,209.43,23.78900617]
[1731283978416,23.78900617,209.51,209.43,23.78900617]
[1731283978610,23.78900617,209.51,209.44,23.78900617]
[1731283978988,4.7732,209.5,209.45,4.45220186]
[1731283979311,23.78900617,209.52,209.46,4.45220186]
[1731283979608,28.56130617,209.54,209.47,28.24120803]
[1731283979806,28.56130617,209.54,209.47,23.78900617]
[1731283980111,23.78900617,209.53,209.46,23.78900617]
[1731283980306,23.78900617,209.52,209.45,23.78900617]
[1731283980509,23.78900617,209.53,209.46,23.78900617]
[1731283980892,4.7723,209.54,209.48,23.78900617]
[1731283981207,28.56100617,209.56,209.49,23.78900617]
[1731283981407,4.7709,209.6,209.54,23.78900617]
[1731283981602,30.31330617,209.61,209.45,23.776884]
[1731283981603,4.7708,209.61,209.56,23.78900617]
[1731283981910,4.7708,209.61,209.55,23.78900617]
[1731283982415,23.78900617,209.59,209.52,23.78900617]
[1731283982614,23.78900617,209.58,209.51,23.78900617]
[1731283982824,23.78900617,209.6,209.53,23.78900617]
[1731283983110,4.7703,209.63,209.57,23.78900617]
[1731283983303,23.78900617,209.62,209.55,23.78900617]
[1731283983504,23.78900617,209.59,209.51,23.78900617]
[1731283983898,21.64091581,209.63,209.49,11.0185]
[1731283984096,21.64091581,209.63,209.54,23.78900617]
[1731283984097,23.78900617,209.61,209.54,23.78900617]
[1731283984311,161.7,209.6,209.53,23.78900617]
[1731283984618,161.7,209.6,209.55,23.78900617]
[1731283984817,161.7,209.6,209.59,23.78900617]
[1731283985028,28.55880617,209.65,209.57,23.78900617]
[1731283985195,185.48900617,209.64,209.57,23.78900617]
[1731283985391,23.78900617,209.63,209.56,23.78900617]
[1731283985590,23.78900617,209.61,209.54,23.78900617]
[1731283985819,23.78900617,209.63,209.56,23.78900617]
[1731283986317,161.7,209.64,209.6,23.78900617]
[1731283986519,161.7,209.64,209.63,23.78900617]
[1731283986732,166.4696,209.66,209.62,23.78900617]
[1731283986896,166.4696,209.66,209.61,23.78900617]
[1731283987097,161.7,209.66,209.64,23.78900617]
[1731283987393,4.7688,209.7,209.65,23.78900617]
[1731283987597,4.7688,209.7,209.66,23.78900617]
[1731283988626,23.78900617,209.71,209.64,23.78900617]
[1731283988913,23.78900617,209.67,209.6,23.78900617]
[1731283989226,23.78900617,209.62,209.55,23.78900617]
[1731283989512,185.48900617,209.61,209.54,40.28760617]
[1731283989717,161.7,209.61,209.55,23.78900617]
[1731283990206,161.7,209.61,209.57,23.78900617]
[1731283990712,161.7,209.61,209.59,23.78900617]
[1731283990897,161.7,209.61,209.54,33.2015]
[1731283990898,161.7,209.61,209.6,23.78900617]
[1731283991097,4.7698,209.65,209.6,23.78900617]
[1731283991295,28.55880617,209.65,209.58,23.78900617]
[1731283991517,28.55880617,209.65,209.34,23.82566362]
[1731283991518,23.78900617,209.59,209.49,11.9332]
[1731283991701,23.78900617,209.57,209.5,23.78900617]
[1731283992023,185.48900617,209.58,209.51,23.78900617]
[1731283992392,23.78900617,209.56,209.46,4.7741]
[1731283992597,4.7719,209.56,209.5,23.78900617]
[1731283993004,4.7719,209.56,209.52,23.78900617]
[1731283994317,4.7719,209.56,209.51,23.78900617]
[1731283994627,4.7719,209.56,209.46,11.9354]
[1731283994797,4.7719,209.56,209.52,23.78900617]
[1731283995434,4.7719,209.56,209.53,23.78900617]
[1731283995935,4.7719,209.56,209.52,23.78900617]
[1731283996216,161.7,209.57,209.55,23.78900617]
[1731283996518,161.7,209.57,209.49,23.776884]
[1731283996519,4.7711,209.6,209.56,23.78900617]
[1731283996903,4.7711,209.6,209.55,23.78900617]
[1731283997234,185.48900617,209.67,209.59,23.78900617]
[1731283997519,166.4696,209.66,209.6,23.78900617]
[1731283997726,190.25860617,209.66,209.59,23.78900617]
[1731283997904,23.78900617,209.64,209.57,23.78900617]
[1731283998717,166.4696,209.66,209.55,11.9302]
[1731283998718,28.55860617,209.66,209.59,23.78900617]
[1731283999013,4.7696,209.66,209.61,23.78900617]
[1731283999224,4.7688,209.7,209.63,23.78900617]
[1731283999396,23.78900617,209.69,209.61,23.78900617]
[1731283999602,4.7691,209.68,209.61,23.78900617]
[1731283999824,23.78900617,209.67,209.6,23.78900617]
[1731284000015,23.78900617,209.66,209.58,23.78900617]
[1731284000517,4.7691,209.68,209.55,16.7023]
[1731284000518,23.78900617,209.67,209.6,23.78900617]
[1731284000837,28.55810617,209.68,209.61,23.78900617]
[1731284001002,4.7682,209.72,209.67,23.78900617]
[1731284001325,23.78900617,209.7,209.63,23.78900617]
[1731284001528,4.7689,209.69,209.63,23.78900617]
[1731284001908,4.7689,209.69,209.64,23.78900617]
[1731284002333,28.55790617,209.69,209.62,23.78900617]
[1731284002511,23.78900617,209.68,209.61,23.78900617]
[1731284002720,4.7689,209.69,209.63,23.78900617]
[1731284003024,4.7689,209.69,209.64,23.78900617]
[1731284003329,161.7,209.7,209.65,23.78900617]
[1731284003330,166.4688,209.7,209.65,23.78900617]
[1731284003910,166.4688,209.7,209.64,23.78900617]
[1731284004113,190.25780617,209.7,209.6,23.3151]
[1731284004321,190.25780617,209.7,209.62,23.78900617]
[1731284004322,4.7691,209.68,209.62,23.78900617]
[1731284004506,4.7691,209.68,209.64,23.78900617]
[1731284004703,166.4687,209.7,209.64,23.78900617]
[1731284004921,166.4687,209.7,209.65,23.78900617]
[1731284005106,161.7,209.7,209.65,23.78900617]
[1731284005428,190.25770617,209.7,209.63,23.78900617]
[1731284006022,161.7,209.7,209.67,23.78900617]
[1731284006222,161.7,209.72,209.67,28.55820617]
[1731284006428,28.55660617,209.75,209.67,28.55820617]
[1731284006429,161.7,209.74,209.71,23.78900617]
[1731284007217,161.7,209.74,209.67,4.7692]
[1731284007218,161.7,209.74,209.73,23.78900617]
[1731284007524,161.7,209.76,209.73,23.78900617]
[1731284007913,166.4674,209.76,209.71,23.78900617]
[1731284009310,166.4674,209.76,209.7,23.78900617]
[1731284009512,166.4674,209.76,209.71,23.78900617]
[1731284009708,4.7669,209.78,209.72,23.78900617]
[1731284009912,4.7669,209.78,209.73,23.78900617]
[1731284010211,166.4666,209.8,209.74,23.78900617]
[1731284010414,161.7,209.79,209.74,23.78900617]
[1731284010614,161.7,209.79,209.75,23.78900617]
[1731284011444,166.4667,209.79,209.75,23.78900617]
[1731284011729,161.7,209.79,209.75,23.78900617]
[1731284011938,166.4663,209.81,209.76,23.78900617]
[1731284012230,166.4663,209.81,209.72,31.8073]
[1731284012231,190.25530617,209.81,209.74,23.78900617]
[1731284012908,166.4663,209.81,209.75,23.78900617]
[1731284013417,166.4663,209.81,209.74,23.78900617]
[1731284013921,166.4663,209.81,209.75,23.78900617]
[1731284014236,166.4663,209.81,209.76,23.78900617]
[1731284014834,166.4663,209.81,209.75,13.62250842]
[1731284015034,166.4663,209.81,209.76,13.62250842]
[1731284015244,161.7,209.82,209.78,13.62250842]
[1731284015414,161.7,209.82,209.79,13.62250842]
[1731284015617,4.7659,209.83,209.78,13.62250842]
[1731284015814,4.7654,209.85,209.79,13.62250842]
[1731284016019,4.7654,209.85,209.8,13.62250842]
[1731284016733,161.7,209.86,209.84,13.62250842]
[1731284016937,161.7,209.87,209.85,13.62250842]
[1731284017313,161.7,209.87,209.84,13.62250842]
[1731284017925,161.7,209.87,209.82,13.62250842]
[1731284018125,4.765,209.86,209.8,13.62250842]
[1731284018615,161.7,209.87,209.82,13.62250842]
[1731284018837,161.7,209.87,209.79,23.776884]
[1731284018838,161.7,209.87,209.83,21.78211167]
[1731284019219,161.7,209.87,209.82,21.78211167]
[1731284019419,161.7,209.87,209.83,21.78211167]
[1731284019919,166.4649,209.87,209.82,21.78211167]
[1731284020338,4.7644,209.89,209.84,21.78211167]
[1731284020724,4.7644,209.89,209.8,16.6825]
[1731284020725,4.7644,209.89,209.83,21.78211167]
[1731284021025,4.7644,209.89,209.82,21.78211167]
[1731284021224,4.7644,209.89,209.78,21.78211167]
[1731284021225,21.78211167,209.87,209.78,21.78211167]
[1731284021417,21.78211167,209.85,209.77,21.78211167]
[1731284021622,161.7,209.86,209.84,21.78211167]
[1731284021827,166.4644,209.89,209.84,21.78211167]
[1731284022126,166.4644,209.89,209.83,21.78211167]
[1731284022618,166.4644,209.89,209.84,21.78211167]
[1731284023041,166.4644,209.89,209.82,45.55899567]
[1731284023320,188.24651167,209.89,209.82,45.55899567]
[1731284023744,188.24651167,209.89,209.81,11.9153]
[1731284023745,21.78211167,209.88,209.81,33.69741167]
[1731284023939,188.24651167,209.89,209.82,21.78211167]
[1731284025240,4.7637,209.92,209.86,21.78211167]
[1731284025441,183.48211167,209.93,209.83,23.776884]
[1731284025442,166.4635,209.93,209.87,21.78211167]
[1731284026643,161.7,209.93,209.9,21.78211167]
[1731284027142,161.7,209.93,209.89,21.78211167]
[1731284027952,161.7,209.93,209.9,21.78211167]
[1731284028152,166.4619,210.0,209.92,45.55899567]
[1731284028450,6.0383,210.03,209.92,45.55899567]
[1731284028451,161.7,210.03,209.99,21.78211167]
[1731284028625,4.7607,210.06,210.01,21.78211167]
[1731284029334,4.7607,210.06,210.0,21.78211167]
[1731284029536,21.78211167,210.03,209.96,21.78211167]
[1731284029736,21.78211167,209.99,209.94,16.5868]
[1731284029940,21.78211167,209.99,209.89,16.6752]
[1731284029941,4.7609,210.04,209.89,36.94931167]
[1731284030252,161.7,210.03,209.89,15.1672]
[1731284030556,161.7,210.03,209.86,6.4179]
[1731284030761,161.7,210.03,209.84,15.1672]
[1731284030762,23.776884,210.0,209.84,15.1672]
[1731284031051,0.1,209.98,209.81,6.2619]
[1731284031352,21.78211167,209.9,209.83,21.78211167]
[1731284031540,21.78211167,210.0,209.84,21.78211167]
[1731284031541,21.78211167,209.92,209.84,21.78211167]
[1731284031750,21.78211167,209.94,209.87,21.78211167]
[1731284032083,21.78211167,209.96,209.89,21.78211167]
[1731284032374,21.78211167,209.97,209.9,21.78211167]
[1731284032778,21.78211167,209.98,209.9,21.78211167]
[1731284033159,21.361,210.01,209.85,0.1]
[1731284033160,21.78211167,209.97,209.89,21.78211167]
[1731284033361,4.7628,209.96,209.9,45.55899567]
[1731284033595,26.54461167,209.98,209.91,21.78211167]
[1731284033879,21.78211167,209.97,209.9,21.78211167]
[1731284034086,21.78211167,209.96,209.89,23.776884]
[1731284034271,21.78211167,209.95,209.89,23.776884]
[1731284034476,21.78211167,209.96,209.89,23.776884]
[1731284034659,21.78211167,209.94,209.87,45.55899567]
[1731284034862,21.78211167,209.94,209.84,16.6025]
[1731284034863,21.78211167,209.9,209.84,16.6025]
[1731284035060,16.6683,209.98,209.84,16.6025]
[1731284035061,21.78211167,209.89,209.84,16.6025]
[1731284035361,26.54661167,209.89,209.84,16.6025]
[1731284036147,21.78211167,209.87,209.81,11.028]
[1731284036346,21.78211167,209.88,209.81,11.028]
[1731284036551,21.78211167,209.87,209.82,23.776884]
[1731284037348,21.78211167,209.87,209.81,23.776884]
[1731284037556,21.78211167,209.88,209.8,45.55899567]
[1731284037758,21.78211167,209.88,209.81,21.78211167]
[1731284038062,21.78211167,209.87,209.8,45.55899567]
[1731284038263,21.78211167,209.87,209.8,50.32529567]
[1731284038754,13.6158924,209.87,209.8,42.1590764]
[1731284039565,13.6158924,209.88,209.81,13.6158924]
[1731284040058,13.6158924,209.88,209.82,4.48870037]
[1731284040253,13.6158924,209.88,209.83,4.48870037]
[1731284040554,13.6158924,209.9,209.84,4.48870037]
[1731284040754,13.6158924,209.9,209.85,4.48870037]
[1731284041138,13.6158924,209.9,209.86,4.48870037]
[1731284041341,13.6158924,209.91,209.87,4.48870037]
[1731284041536,4.7632,209.94,209.87,13.6158924]
[1731284041537,18.3791924,209.94,209.87,13.6158924]
[1731284041734,18.3791924,209.94,209.86,18.3807924]
[1731284041936,18.3791924,209.94,209.81,0.1]
[1731284041937,13.6158924,209.87,209.81,23.776884]
[1731284042143,13.6158924,209.85,209.79,27.1632]
[1731284042743,13.6158924,209.85,209.8,4.50562748]
[1731284043271,13.6158924,209.87,209.81,4.50562748]
[1731284043569,18.3798924,209.91,209.84,13.6158924]
[1731284043778,18.3798924,209.91,209.85,4.50562748]
[1731284043947,13.6158924,209.9,209.86,4.50562748]
[1731284044152,13.6158924,209.93,209.87,4.50562748]
[1731284044377,13.6158924,209.94,209.88,4.50562748]
[1731284044585,13.6158924,209.98,209.92,15.7564]
[1731284044797,13.6158924,210.03,209.96,13.6158924]
[1731284044979,4.76,210.08,209.93,23.776884]
[1731284045183,13.6158924,210.05,209.97,13.6158924]
[1731284045355,13.6158924,210.03,209.96,13.6158924]
[1731284045971,13.6158924,210.01,209.94,11.9081]
[1731284046176,13.6158924,210.0,209.94,11.9081]
[1731284047050,13.6158924,210.01,209.94,11.9081]
[1731284047241,13.6158924,210.02,209.94,25.5239924]
[1731284047443,13.6158924,210.03,209.95,37.3927764]
[1731284047849,13.6158924,210.02,209.95,37.3927764]
[1731284048147,13.6158924,210.03,209.95,37.3927764]
[1731284048348,13.6158924,210.04,209.96,13.6158924]
[1731284048571,13.6158924,210.02,209.95,23.776884]
[1731284048863,13.6158924,210.01,209.95,23.776884]
[1731284049158,13.6158924,210.04,209.97,37.3927764]
[1731284049466,167.8268,210.09,209.98,13.6158924]
[1731284049647,13.6158924,210.05,209.98,6.5288]
[1731284049834,4.76,210.08,209.98,6.5288]
[1731284049835,13.6158924,210.04,209.98,6.5288]
[1731284050248,13.6158924,210.05,209.98,20.1446924]
[1731284050459,13.6158924,210.03,209.98,6.5288]
[1731284050644,13.6158924,210.1,209.98,6.5288]
[1731284050645,13.6158924,210.05,209.99,23.776884]
[1731284050847,13.6158924,210.07,210.0,13.6158924]
[1731284051159,13.6158924,210.05,209.99,23.776884]
[1731284052143,4.7598,210.09,210.01,13.6158924]
[1731284052144,18.3756924,210.09,210.01,13.6158924]
[1731284052444,18.3756924,210.09,210.02,18.3771924]
[1731284052751,18.3752924,210.11,210.03,37.3927764]
[1731284052951,13.6158924,210.1,210.03,37.3927764]
[1731284053344,6.3845,210.24,210.09,13.6158924]
[1731284053563,13.6158924,210.19,210.12,13.6158924]
[1731284053760,4.7566,210.23,210.08,23.776884]
[1731284053761,13.6158924,210.21,210.13,13.6158924]
[1731284053944,4.7566,210.23,210.17,13.6158924]
[1731284054242,3.058989,210.32,210.18,43.776884]
[1731284054446,4.94928264,210.32,210.18,43.776884]
[1731284054661,4.7544,210.33,210.21,22.305]
[1731284054853,4.7528,210.4,210.22,23.776884]
[1731284055163,13.6158924,210.35,210.28,13.6158924]
[1731284055455,13.6158924,210.35,210.27,13.6158924]
[1731284055845,13.6158924,210.36,210.28,13.6158924]
[1731284056245,4.7528,210.4,210.22,23.776884]
[1731284056246,13.6158924,210.37,210.3,13.6158924]
[1731284056540,4.7528,210.4,210.3,13.6158924]
[1731284056541,4.7528,210.4,210.34,13.6158924]
[1731284056751,4.7528,210.4,210.3,4.7548]
[1731284056752,4.7528,210.4,210.33,23.84376393]
[1731284057450,23.84376393,210.39,210.31,23.84376393]
[1731284057857,4.7528,210.4,210.24,23.776884]
[1731284057858,23.84376393,210.32,210.24,23.776884]
[1731284058062,4.7528,210.4,210.21,22.305]
[1731284058063,23.84376393,210.28,210.21,22.305]
[1731284058571,23.84376393,210.3,210.22,23.84376393]
[1731284058864,23.84376393,210.32,210.25,23.84376393]
[1731284059065,23.84376393,210.34,210.26,23.84376393]
[1731284059252,23.84376393,210.34,210.27,23.776884]
[1731284059454,23.84376393,210.35,210.27,47.62064793]
[1731284059672,4.753,210.39,210.32,23.84376393]
[1731284059969,28.59636393,210.41,210.33,23.84376393]
[1731284060862,23.84376393,210.39,210.31,47.62064793]
[1731284061766,23.84376393,210.39,210.32,23.84376393]
[1731284061972,23.84376393,210.4,210.32,23.84376393]
[1731284062846,28.59666393,210.4,210.32,23.84376393]
[1731284063058,23.84376393,210.39,210.32,23.84376393]
[1731284063658,23.84376393,210.38,210.3,47.62064793]
[1731284063864,23.84376393,210.35,210.28,11.8884]
[1731284064252,16.92820295,210.46,210.28,11.8884]
[1731284064253,16.82820295,210.46,210.32,23.84376393]
[1731284064448,23.84376393,210.4,210.32,23.84376393]
[1731284064650,23.84376393,210.38,210.31,23.84376393]
[1731284065068,4.7532,210.39,210.32,47.62064793]
[1731284065251,4.7532,210.39,210.33,23.84376393]
[1731284065572,4.7532,210.39,210.32,23.776884]
[1731284065573,23.84376393,210.38,210.32,23.776884]
[1731284065769,28.59696393,210.39,210.32,47.62064793]
[1731284066466,161.7,210.45,210.32,47.62064793]
[1731284066467,23.84376393,210.4,210.32,47.62064793]
[1731284066767,23.84376393,210.39,210.32,23.84376393]
[1731284066966,23.84376393,210.39,210.31,23.84376393]
[1731284067158,23.84376393,210.4,210.32,23.84376393]
[1731284067370,23.84376393,210.39,210.31,47.62064793]
[1731284067574,23.84376393,210.39,210.32,23.84376393]
[1731284068179,23.84376393,210.39,210.31,47.62064793]
[1731284068347,23.84376393,210.37,210.29,43.84376393]
[1731284068667,23.84376393,210.32,210.24,23.84376393]
[1731284068877,23.84376393,210.33,210.26,23.84376393]
[1731284069172,23.84376393,210.35,210.28,23.84376393]
[1731284069549,23.84376393,210.37,210.29,23.84376393]
[1731284069750,23.84376393,210.39,210.31,23.84376393]
[1731284069965,23.84376393,210.4,210.33,23.84376393]
[1731284070273,28.59666393,210.4,210.33,23.84376393]
[1731284070468,28.59666393,210.4,210.31,4.7547]
[1731284070469,23.84376393,210.39,210.32,23.84376393]
[1731284070853,28.59666393,210.4,210.33,23.84376393]
[1731284071053,23.84376393,210.4,210.33,23.84376393]
[1731284071266,28.59616393,210.42,210.35,23.84376393]
[1731284071749,23.84376393,210.41,210.34,23.84376393]
[1731284071949,23.84376393,210.39,210.33,16.0104]
[1731284072264,23.84376393,210.38,210.33,16.0104]
[1731284072658,23.84376393,210.43,210.36,23.84376393]
[1731284072860,23.84376393,210.42,210.35,23.84376393]
[1731284073061,23.84376393,210.44,210.36,23.84376393]
[1731284073279,23.84376393,210.46,210.39,23.84376393]
[1731284073651,23.84376393,210.47,210.39,23.84376393]
[1731284073852,23.84376393,210.49,210.41,23.84376393]
[1731284074068,4.7505,210.5,210.43,23.84376393]
[1731284074069,28.59426393,210.5,210.43,23.84376393]
[1731284074373,23.84376393,210.46,210.39,35.72586393]
[1731284074572,23.84376393,210.46,210.39,16.6351]
[1731284074774,23.84376393,210.46,210.39,40.47886393]
[1731284075072,23.84376393,210.49,210.42,23.84376393]
[1731284075275,28.59426393,210.5,210.43,23.84376393]
[1731284075587,28.59426393,210.5,210.42,28.59606393]
[1731284075958,4.7505,210.5,210.44,23.84376393]
[1731284076155,23.84376393,210.54,210.47,23.84376393]
[1731284076452,28.59316393,210.55,210.47,23.84376393]
[1731284076872,23.84376393,210.53,210.46,47.62064793]
[1731284077076,23.84376393,210.54,210.47,23.84376393]
[1731284077276,23.84376393,210.49,210.45,15.6755]
[1731284077465,23.84376393,210.48,210.43,6.1924]
[1731284077667,23.84376393,210.49,210.43,6.1924]
[1731284078360,23.84376393,210.46,210.4,15.3591]
[1731284078583,23.84376393,210.45,210.4,15.3591]
[1731284079683,23.84376393,210.44,210.4,15.3591]
[1731284079978,23.84376393,210.44,210.38,6.6512]
[1731284079979,23.84376393,210.43,210.38,6.6512]
[1731284080184,23.84376393,210.44,210.38,6.6512]
[1731284080483,28.59546393,210.45,210.38,6.6512]
[1731284080671,23.84376393,210.44,210.38,6.6512]
[1731284082586,23.84376393,210.42,210.35,16.1805]
[1731284082877,23.84376393,210.42,210.35,20.9343]
[1731284083067,23.84376393,210.41,210.35,16.1805]
[1731284083467,23.84376393,210.42,210.35,40.02426393]
[1731284083674,28.59616393,210.42,210.35,44.77806393]
[1731284084683,23.84376393,210.44,210.37,23.84376393]
[1731284084982,23.84376393,210.44,210.36,23.84376393]
[1731284085279,23.84376393,210.41,210.35,28.0654]
[1731284085675,23.84376393,210.39,210.35,16.1805]
[1731284085868,23.84376393,210.36,210.3,15.4841]
[1731284086069,23.84376393,210.31,210.26,17.9064]
[1731284086458,23.84376393,210.34,210.26,41.75016393]
[1731284086685,28.59726393,210.37,210.3,23.84376393]
[1731284087385,23.84376393,210.4,210.33,23.84376393]
[1731284087768,23.84376393,210.41,210.33,23.84376393]
[1731284087970,23.84376393,210.4,210.33,23.84376393]
[1731284088572,166.4524,210.42,210.29,16.6435]
[1731284088573,190.29616393,210.42,210.35,23.84376393]
[1731284088890,28.59616393,210.42,210.34,23.84376393]
[1731284089398,28.59616393,210.42,210.35,23.84376393]
[1731284089683,4.7524,210.42,210.35,23.84376393]
[1731284090183,11.8775,210.49,210.37,23.84376393]
[1731284090184,23.84376393,210.44,210.37,23.84376393]
[1731284090363,28.59516393,210.46,210.39,23.84376393]
[1731284090567,4.7514,210.46,210.39,23.84376393]
[1731284090775,28.59516393,210.46,210.39,28.59666393]
[1731284091089,23.84376393,210.45,210.39,4.7529]
[1731284091288,23.84376393,210.43,210.36,16.4117]
[1731284091594,4.7514,210.46,210.32,23.84376393]
[1731284091595,23.84376393,210.39,210.32,23.84376393]
[1731284091765,16.6301,210.46,210.31,21.1664]
[1731284091766,23.84376393,210.36,210.31,16.4117]
[1731284091967,23.84376393,210.34,210.31,16.4117]
[1731284092185,23.84376393,210.35,210.31,16.4117]
[1731284092367,23.84376393,210.36,210.31,16.4117]
[1731284092686,23.84376393,210.35,210.31,16.4117]
[1731284093778,28.59776393,210.35,210.31,16.4117]
[1731284095068,23.84376393,210.33,210.26,26.1334]
[1731284095487,23.84376393,210.33,210.26,38.0234]
[1731284095673,23.84376393,210.33,210.26,32.0066]
[1731284096376,28.59826393,210.33,210.26,32.0066]
[1731284096585,4.7545,210.33,210.27,23.84376393]
[1731284096877,23.84376393,210.34,210.28,23.776884]
[1731284097082,23.84376393,210.36,210.28,23.776884]
[1731284097988,23.84376393,210.32,210.26,27.2507]
[1731284098286,23.84376393,210.32,210.26,15.3607]
[1731284098487,28.59856393,210.32,210.26,15.3607]
[1731284099685,23.84376393,210.28,210.23,11.1139]
[1731284099984,23.84376393,210.3,210.23,34.95766393]
[1731284100188,4.7548,210.32,210.23,34.95766393]
[1731284100189,23.84376393,210.31,210.23,34.95766393]
[1731284100368,23.84376393,210.3,210.23,34.95766393]
[1731284100569,23.84376393,210.29,210.23,6.3573]
[1731284100766,4.7552,210.3,210.21,15.3607]
[1731284100767,23.84376393,210.25,210.21,15.3607]
[1731284101197,23.84376393,210.25,210.18,11.8945]
[1731284101398,23.84376393,210.27,210.19,23.84376393]
[1731284101590,161.7,210.31,210.25,23.84376393]
[1731284101771,0.1,210.42,210.18,16.6523]
[1731284101772,23.84376393,210.36,210.29,23.84376393]
[1731284101972,4.7526,210.41,210.31,23.84376393]
[1731284102474,4.7526,210.41,210.25,20.0]
[1731284102780,4.7526,210.41,210.29,20.0]
[1731284102781,161.7,210.4,210.29,20.0]
[1731284102968,161.7,210.4,210.3,23.776884]
[1731284103371,23.84376393,210.35,210.27,23.84376393]
[1731284103576,28.59776393,210.35,210.28,23.776884]
[1731284104303,28.59776393,210.35,210.23,3.06987411]
[1731284104304,23.84376393,210.31,210.23,11.8917]
[1731284104478,23.84376393,210.31,210.25,23.776884]
[1731284104673,4.754,210.35,210.25,23.776884]
[1731284104674,23.84376393,210.33,210.25,23.776884]
[1731284105092,23.84376393,210.38,210.3,23.84376393]
[1731284105294,23.84376393,210.38,210.25,23.776884]
[1731284105295,185.54376393,210.39,210.32,23.84376393]
[1731284105588,28.59686393,210.39,210.31,28.59836393]
[1731284106181,28.59686393,210.39,210.29,23.84376393]
[1731284106182,23.84376393,210.36,210.29,23.84376393]
[1731284106385,23.84376393,210.34,210.26,6.1793]